[Event "Fall GM-C Norm Invitational 2022"]
[Site "Charlotte"]
[Date "2022.11.18"]
[Round "2"]
[White "Escobar Forero, Alder"]
[Black "Macieja, Bartlomiej"]
[Result "0-1"]
[ECO "B11"]
[WhiteElo "2510"]
[BlackElo "2514"]
[Annotator "TA"]
[PlyCount "69"]
[EventDate "2022.11.18"]
[EventType "tourn"]
[EventCountry "USA"]
[SourceTitle "playchess.com"]
[Source "ChessBase"]
[SourceQuality "1"]
[TimeControl "5400+30"]

{[%evp 10,69,24,10,49,40,39,31,48,26,25,26,27,24,37,20,23,0,29,29,29,10,9,-29,-32,-46,-20,-47,-35,-81,-55,-91,-75,-97,-53,-95,-50,-52,-49,-85,-81,-109,-88,-97,-41,-35,-29,-78,-74,-64,-66,-112,-112,-118,-98,-105,-73,-73,-63,-99,-104,-108]} 1. e4 {[%emt 0:00:30]} c6 {[%emt 0:02:35]} 2. Nc3 {[%emt 0:00:00]} d5 {[%emt 0:00:06]} 3. Nf3 {[%emt 0:00:00]} Bg4 {[%emt 0:00:20]} 4. h3 {[%emt 0:00:20]} Bxf3 {[%emt 0:00:04]} 5. Qxf3 {[%emt 0:00:07]} e6 {[%emt 0:00:04]} 6. Be2 {[%emt 0:00:09]} dxe4 {[%emt 0:09:27] B11: Caro-Kann: Two Knights Variation.} 7. Nxe4 {[%emt 0:01:19]} Nd7 {[%emt 0:00:06]} 8. O-O {[%emt 0:05:16]} Ngf6 {[%emt 0:00:08] White is slightly better.} 9. d3 {[%emt 0:08:53]} Be7 {[%emt 0:12:09]} 10. Qg3 {[%emt 0:02:27]} O-O {[%emt 0:00:21]} ({Resist} 10... Nxe4 11. dxe4 O-O 12. Rd1 $16) 11. Bf4 {[%emt 0:07:07] [#]} Qa5 $146 {[%emt 0:29:45]} ({Predecessor:} 11... Kh8 12. Nd6 Nd5 {½-½ (12) Neumann,F (2036)-Zabystrzan,P (2244) Czech Republic 2020}) 12. Bh6 {[%emt 0:15:43][%csl Gh6][%cal Rg3g7] [#]} Ne8 {[%emt 0:00:28]} 13. d4 {[%emt 0:00:23]} Ndf6 {[%emt 0:11:08]} 14. Nxf6+ {[%emt 0:03:30]} Bxf6 {[%emt 0:00:52]} 15. Rfd1 {[%emt 0:05:19]} Qb6 {[%emt 0:10:37][%csl LRb2,LRd4]} 16. Be3 {[%emt 0:16:43][%cal Od4d5]} Qxb2 {[%emt 0:00:54]} 17. Bd3 {[%emt 0:08:01]} Qa3 {[%emt 0:05:47]} 18. Rab1 {[%emt 0:01:54]} Qe7 {[%emt 0:06:38]} 19. Rb3 {[%emt 0:02:03]} (19. c3 $15) 19... Rd8 {[%emt 0:00:39]} 20. Rdb1 {[%emt 0:01:54]} b6 {[%emt 0:03:18]} 21. Rb4 {[%emt 0:05:20]} g6 {[%emt 0:01:41]} (21... Nc7 {keeps more tension.} 22. Rc4 Qd7 23. c3 Rfe8) 22. Qf3 {[%emt 0:01:31]} Rd6 {[%emt 0:03:11]} 23. Be4 {[%emt 0:03:43]} Ng7 {[%emt 0:00:30]} 24. Bxc6 {[%emt 0:06:43]} Nf5 {[%emt 0:00:40]} 25. c3 {[%emt 0:02:20]} Rc8 {[%emt 0:00:07]} 26. Rc4 {[%emt 0:00:15]} Bg5 {[%emt 0:00:59]} (26... Nxe3 $17 27. fxe3 Bg5) 27. Bxg5 $15 {[%emt 0:01:38]} Qxg5 {[%emt 0:00:01]} 28. Bd5 {[%emt 0:00:35]} Rdd8 $17 {[%emt 0:01:06][%cal Bd6d8,Bd8c8,Bc8c7][%mdl 32]} 29. Rxc8 {[%emt 0:00:21]} Rxc8 {[%emt 0:00:01]} 30. Bb7 {[%emt 0:00:23]} (30. Bb3 $15) 30... Rc7 {[%emt 0:00:16]} 31. Be4 {[%emt 0:00:36]} Nd6 {[%emt 0:00:35][%cal Bf5d6,Bd6c4,Bc4b2][%mdl 32]} 32. Bc6 {[%emt 0:00:42]} Nc4 {[%emt 0:00:37] [#] aiming for ...Nd2.} 33. Rd1 {[%emt 0:00:34]} Nb2 {[%emt 0:01:15] Black is more active.} 34. Re1 {[%emt 0:00:39]} Qd2 {[%emt 0:00:31]} 35. Rb1 {[%emt 0:01:02] Weighted Error Value: White=0.20 (precise) /Black=0.15 (very precise)} 0-1

[Event "Fall GM-C Norm Invitational 2022"]
[Site "Charlotte"]
[Date "2022.11.18"]
[Round "2"]
[White "Georgiev, Vladimir"]
[Black "Ippolito, Dean"]
[Result "1/2-1/2"]
[ECO "A48"]
[WhiteElo "2406"]
[BlackElo "2368"]
[Annotator "TA"]
[PlyCount "25"]
[EventDate "2022.11.18"]
[EventType "tourn"]
[EventCountry "USA"]
[SourceTitle "playchess.com"]
[Source "ChessBase"]
[SourceQuality "1"]
[TimeControl "5400+30"]

{[%evp 9,25,0,11,0,-12,-17,-20,-36,-42,-27,-38,-33,-35,-56,-44,-43,-23,-47]} 1. d4 {[%emt 0:20:50]} Nf6 {[%emt 0:00:05][%cal Bg8f6,Bf6h5,Bh5f4,Bf4d5,Bd5b6][%mdl 32]} 2. Nf3 {[%emt 0:00:35]} g6 {[%emt 0:00:07]} 3. Nbd2 {[%emt 0:00:13]} Bg7 {[%emt 0:00:14]} 4. e4 {[%emt 0:00:09][%cal Be2e4,Be4e5][%mdl 32]} O-O {[%emt 0:00:21]} 5. e5 {[%emt 0:01:31]} Nh5 {[%emt 0:00:08]} 6. g4 {[%emt 0:01:56] A48: 1 d4 Nf6 2 Nf3 g6: Torre, London and Colle Systems.} Nf4 {[%emt 0:00:04] [#]} 7. Nb3 $146 {[%emt 0:00:24]} ({Predecessor:} 7. Ne4 d5 8. Ng3 Ne6 9. Nf5 c5 10. Nxg7 Nxg7 11. h3 cxd4 12. Bh6 Qa5+ 13. Qd2 Qxd2+ 14. Nxd2 {1-0 (34) Vidit,S (2727)-Grandelius,N (2672) Wijk aan Zee 2022}) 7... Nd5 {[%emt 0:04:59]} 8. c4 {[%emt 0:05:16] The position is equal.} Nb6 {[%emt 0:04:28]} 9. c5 {[%emt 0:01:40]} Nd5 {[%emt 0:00:12]} 10. Bc4 {[%emt 0:00:07]} c6 {[%emt 0:01:17]} 11. Qe2 {[%emt 0:05:55]} d6 {[%emt 0:05:09]} 12. h3 {[%emt 0:00:17]} b6 {[%emt 0:18:08]} (12... a5 $5 {[%cal Ra5a4]}) 13. Bg5 {[%emt 0:09:16] Weighted Error Value: White=0.07 (flawless) /Black=0.03 (flawless)} 1/2-1/2

[Event "Fall GM-C Norm Invitational 2022"]
[Site "Charlotte"]
[Date "2022.11.18"]
[Round "2"]
[White "Sethuraman, Sandeep"]
[Black "Gedajlovic, Max"]
[Result "0-1"]
[ECO "E32"]
[WhiteElo "2371"]
[BlackElo "2317"]
[Annotator "TA"]
[PlyCount "136"]
[EventDate "2022.11.18"]
[EventType "tourn"]
[EventCountry "USA"]
[SourceTitle "playchess.com"]
[Source "ChessBase"]
[SourceQuality "1"]
[TimeControl "5400+30"]

{[%evp 9,136,-37,-28,-33,-31,-53,-57,-45,-44,-70,-34,-112,-8,-97,-62,-86,-83,-89,-98,-97,-98,-90,-88,-133,-123,-134,-129,-153,-47,-45,-35,-168,-106,-111,-109,-124,-122,-120,-121,-118,-118,-189,-120,-164,-156,-288,-293,-403,-383,-333,-310,-419,-414,-412,-411,-411,-403,-430,-429,-515,-507,-532,-510,-498,-467,-364,-397,-12832,-12833,-12831,-12832,-12836,-12836,-12840,-12840,-12842,-12842,-12843,-12843,-12845,-12844,-12845,-12844,-12844,-12845,-29989,-29990,-29995,-12845,-12845,-12846,-12848,-12848,-12849,-12849,-27999,-27999,-27999,-27999,-27999,-27999,-27999,-27999,-27999,-27999,-27999,-27999,-27999,-27999,-27999,-27999,-27999,-27999,-27999,-27999,-27999,-27999,-27999,-27999,-27999,-27999,-27999,-27999,-27999,-27997,-27998,-27998,-27999,-27999]} 1. d4 {[%emt 0:00:01]} Nf6 {[%emt 0:00:39]} 2. c4 {[%emt 0:00:04]} e6 {[%emt 0:00:09]} 3. Nc3 {[%emt 0:00:04]} Bb4 {[%emt 0:00:09]} 4. Qc2 {[%emt 0:00:04]} d6 {[%emt 0:00:13]} 5. f3 {[%emt 0:05:16]} c5 {[%emt 0:00:43]} 6. dxc5 {[%emt 0:00:39] [#] E32: Nimzo-Indian: Classical (4 Qc2): 4...0-0.} Bxc5 $146 {[%emt 0:00:36]} ({Predecessor:} 6... dxc5 7. e4 Nc6 8. Nge2 O-O 9. a3 Bxc3+ 10. Qxc3 e5 11. Ng3 Nd4 12. Be2 Be6 {½-½ (39) Trevelyan,J (2145)-Williams,A (2340) Cardiff 2004}) 7. Nh3 {[%emt 0:12:01]} Nc6 {[%emt 0:01:26]} 8. Bg5 {[%emt 0:09:58] Black is slightly better.} h6 {[%emt 0:07:15]} 9. Bh4 {[%emt 0:04:19]} Qa5 {[%emt 0:06:26]} 10. O-O-O {[%emt 0:08:08]} (10. e4 $15) 10... Bd7 {[%emt 0:03:36]} (10... Nb4 $17 11. Qa4+ Qxa4 12. Nxa4 Be3+ 13. Kb1 e5) 11. Bf2 {[%emt 0:07:42] Prevents Be3+.} (11. Kb1 $11) 11... Rc8 {[%emt 0:05:34][%cal Od6d5]} 12. Kb1 {[%emt 0:07:48]} d5 {[%emt 0:20:59]} 13. Bxc5 {[%emt 0:09:18]} Qxc5 {[%emt 0:00:21]} 14. cxd5 {[%emt 0:01:11]} exd5 {[%emt 0:06:03] White must now prevent ...Nb4.} (14... Nb4 $6 15. Qd2 $15) 15. e4 {[%emt 0:00:41]} (15. Nxd5 $2 Qxc2+ 16. Kxc2 Nxd5 $19) 15... dxe4 $1 {[%emt 0:08:35]} 16. fxe4 {[%emt 0:00:41]} O-O $1 {[%emt 0:03:14] Black is more active.} 17. Qf2 {[%emt 0:02:40]} Qa5 {[%emt 0:01:23]} 18. Nf4 {[%emt 0:02:19]} Nxe4 {[%emt 0:15:57]} 19. Nxe4 $15 {[%emt 0:00:59]} Bf5 {[%emt 0:00:19]} 20. Qe1 {[%emt 0:04:50]} ({White has to play} 20. Bd3 $15 Nb4 21. Nc3) 20... Rfe8 $40 {[%emt 0:02:56][%mdl 128] Black goes for the king.} ({And not} 20... Nb4 21. a3 Qc7 22. axb4 $11) (20... Qa4 $1 $19 21. b3 Bxe4+ 22. Kb2 Qb4 23. Qxb4 Nxb4) 21. Bd3 $17 {[%emt 0:03:45]} Qe5 {[%emt 0:01:55]} 22. Rf1 {[%emt 0:08:10] aiming for Ng3.} Bxe4 {[%emt 0:01:46]} 23. Bxe4 {[%emt 0:00:28]} Qxe4+ {[%emt 0:00:02]} 24. Qxe4 {[%emt 0:00:01]} Rxe4 {[%emt 0:00:01]} 25. Rd3 {[%emt 0:01:20]} (25. Rf2 $17 {was called for.}) 25... Rd8 {[%emt 0:02:27]} (25... Ne5 $19 26. Rdd1 Nc4) 26. Rg3 {[%emt 0:01:38]} Ne5 {[%emt 0:00:34]} 27. Rc3 {[%emt 0:01:39]} (27. Nh5 $17 Ng6 28. Rc3) 27... Nc4 $19 {[%emt 0:01:31] Strongly threatening ...Nd2+.} 28. Kc1 {[%emt 0:01:03] [#]} Nd2 $1 {[%emt 0:01:57]} 29. Rd1 {[%emt 0:02:29]} Rxf4 {[%emt 0:00:53]} 30. Rxd2 {[%emt 0:00:01][%mdl 4096] Endgame KRR-KRR} Rf1+ {[%emt 0:00:04]} 31. Kc2 {[%emt 0:00:07]} Rxd2+ {[%emt 0:00:16]} 32. Kxd2 {[%emt 0:00:03] KR-KR} Rf2+ {[%emt 0:00:06]} 33. Kc1 {[%emt 0:00:05]} Rxg2 {[%emt 0:00:36]} 34. Rc8+ {[%emt 0:00:57]} Kh7 {[%emt 0:00:01]} 35. Rc7 {[%emt 0:00:01]} f5 {[%emt 0:00:15]} 36. Rxb7 {[%emt 0:00:47]} Kg6 {[%emt 0:01:10]} 37. Rxa7 {[%emt 0:00:46] [#]} f4 $1 {[%emt 0:01:16]} ({Weaker is} 37... Rxh2 38. b4 $17) 38. Kd1 $2 {[%emt 0:01:04]} (38. Ra8 Rxh2 39. b4) 38... Rxb2 {[%emt 0:02:32]} 39. h4 {[%emt 0:01:05]} Rh2 {[%emt 0:00:56]} 40. a4 {[%emt 0:00:31]} Rxh4 {[%emt 0:01:02]} 41. a5 {[%emt 0:00:09]} Rh2 {[%emt 0:00:51]} 42. a6 {[%emt 0:00:29]} Ra2 {[%emt 0:00:12]} 43. Ra8 {[%emt 0:01:04]} Kh5 {[%emt 0:00:41]} 44. a7 {[%emt 0:00:33]} g5 {[%emt 0:00:21]} 45. Ke1 {[%emt 0:00:04]} g4 {[%emt 0:00:27]} 46. Kf1 {[%emt 0:00:50]} f3 {[%emt 0:00:19] ( -> ...g3)} 47. Ke1 {[%emt 0:00:42]} g3 {[%emt 0:00:46]} 48. Rf8 {[%emt 0:00:34]} Ra1+ {[%emt 0:00:29]} (48... g2 $142 49. Rf5+ Kg4 50. Rxf3 g1=Q+ 51. Rf1 Qe3+ 52. Kd1 Qd2#) 49. Kd2 {[%emt 0:00:06]} g2 {[%emt 0:00:42]} 50. Rg8 {[%emt 0:00:41]} f2 {[%emt 0:00:15]} 51. a8=Q {[%emt 0:00:21]} Rxa8 {[%emt 0:00:11]} 52. Rxa8 {[%emt 0:00:04]} f1=Q {[%emt 0:00:11] KQ-KR. Black mates.} 53. Ra5+ {[%emt 0:00:02]} Kg6 {[%emt 0:00:11]} 54. Rc5 {[%emt 0:00:21]} Qf2+ {[%emt 0:00:07]} 55. Kd3 {[%emt 0:00:03]} Qxc5 {[%emt 0:00:06]} 56. Ke4 {[%emt 0:00:06]} Qf5+ {[%emt 0:00:05]} 57. Kd4 {[%emt 0:00:03]} g1=B+ {[%emt 0:00:06][%cal Bg2g1,Bg1d4,Bd4e5][%mdl 32]} 58. Kc4 {[%emt 0:00:04]} Qe4+ {[%emt 0:00:06]} 59. Kc3 {[%emt 0:00:03]} Bd4+ {[%emt 0:00:06]} 60. Kc4 {[%emt 0:00:02]} Be5+ {[%emt 0:00:05]} 61. Kc5 {[%emt 0:00:03]} Qd4+ {[%emt 0:00:06]} 62. Kb5 {[%emt 0:00:03]} h5 {[%emt 0:00:04]} 63. Kc6 {[%emt 0:00:02]} h4 {[%emt 0:00:10]} 64. Kb5 {[%emt 0:00:02]} h3 {[%emt 0:00:05]} 65. Kc6 {[%emt 0:00:05]} h2 {[%emt 0:00:06]} 66. Kb7 {[%emt 0:00:03]} h1=R {[%emt 0:00:06]} 67. Kc6 {[%emt 0:00:04]} Rc1+ {[%emt 0:00:05]} 68. Kb7 {[%emt 0:00:03]} Qb2+ {[%emt 0:00:04] Weighted Error Value: White=0.44/Black=0.16 (very precise)} 0-1

[Event "Fall GM-C Norm Invitational 2022"]
[Site "Charlotte"]
[Date "2022.11.18"]
[Round "2"]
[White "Rodriguez Garcia, Victor"]
[Black "Wang, Tianqi"]
[Result "0-1"]
[ECO "B07"]
[WhiteElo "2350"]
[BlackElo "2428"]
[Annotator "TA"]
[PlyCount "102"]
[EventDate "2022.11.18"]
[EventType "tourn"]
[EventCountry "USA"]
[SourceTitle "playchess.com"]
[Source "ChessBase"]
[SourceQuality "1"]
[TimeControl "5400+30"]

{[%evp 19,102,31,5,2,54,61,78,57,60,31,50,38,48,39,55,52,54,2,28,31,37,0,0,-8,0,0,20,-23,-8,-8,-10,-15,-16,-11,-8,0,0,-19,-19,-56,-56,-58,-58,-60,-56,-60,-54,-99,-45,-49,-46,-68,-55,-210,-209,-192,-193,-232,-208,-328,-246,-404,-383,-399,-364,-495,-472,-1346,-1229,-1013,-1321,-1906,-2202,-2747,-843,-2844,-1878,-1514,-2756,-2165,-2082,-2651,-2732,-2185,-2046]} 1. e4 {[%emt 0:00:07]} d6 {[%emt 0:00:05]} 2. d4 {[%emt 0:00:17]} Nf6 {[%emt 0:00:06]} 3. Nc3 {[%emt 0:00:30]} g6 {[%emt 0:00:07]} 4. g3 {[%emt 0:05:03]} Bg7 {[%emt 0:01:20]} 5. Bg2 {[%emt 0:00:02]} O-O {[%emt 0:00:13]} 6. Nge2 {[%emt 0:00:04]} e5 {[%emt 0:00:31]} 7. h3 {[%emt 0:05:03]} exd4 {[%emt 0:00:34]} 8. Nxd4 {[%emt 0:00:20]} Re8 {[%emt 0:00:05]} 9. O-O {[%emt 0:00:21]} Nbd7 {[%emt 0:00:08]} 10. Re1 {[%emt 0:01:57]} Nc5 {[%emt 0:00:29]} 11. Bf4 {[%emt 0:07:01] B07: Pirc Defence: Miscellaneous Systems.} a5 {[%emt 0:01:21]} ({Black should try} 11... Nh5 $11) 12. Qd2 $14 {[%emt 0:01:23] [#]} a4 $146 {[%emt 0:00:33]} ({Predecessor:} 12... Nfd7 13. Bg5 Nf6 14. Rad1 c6 15. Nb3 Ne6 16. Bh6 Bxh6 17. Qxh6 Qc7 18. Qd2 a4 {1-0 (59) Kovalevskaya,E (2419)-Umudova,N (2220) Batumi 2012}) 13. Rad1 {[%emt 0:03:01] White is better.} c6 {[%emt 0:16:25]} 14. Qc1 {[%emt 0:10:42]} Nh5 {[%emt 0:12:48]} 15. Be3 {[%emt 0:02:40][%cal Od4b5]} Qa5 {[%emt 0:10:30] Inhibits Ndb5.} 16. a3 {[%emt 0:03:39]} Bf8 {[%emt 0:08:46]} 17. Bh6 {[%emt 0:13:45][%cal Be3h6,Bh6d2,Bd2f4][%mdl 32]} Ng7 {[%emt 0:05:56]} 18. Nde2 {[%emt 0:06:16]} (18. Kh2 $14) 18... Be6 {[%emt 0:01:41]} 19. Rd4 {[%emt 0:11:17]} f5 {[%emt 0:12:14]} 20. Bd2 {[%emt 0:05:14][%cal Oc3d5] [#] Threatens to win with Nd5!} Qc7 {[%emt 0:00:30]} 21. Bf4 {[%emt 0:04:50]} Bf7 {[%emt 0:07:51]} 22. Red1 {[%emt 0:05:21][%cal Rf4d6]} Rad8 {[%emt 0:01:02]} 23. e5 {[%emt 0:01:40][%cal Re5d6]} Nge6 {[%emt 0:01:19]} 24. exd6 {[%emt 0:00:33]} Qc8 {[%emt 0:00:26]} 25. R4d2 {[%emt 0:04:09][%cal Oc3a4]} Nxf4 {[%emt 0:00:58]} 26. Nxf4 {[%emt 0:00:01][%cal Oc3a4]} ({Reject} 26. gxf4 Rd7 27. Rd4 Qd8 $17) 26... Qb8 {[%emt 0:00:26]} 27. d7 {[%emt 0:02:41]} Re7 {[%emt 0:00:04]} 28. h4 {[%emt 0:02:02]} Qc7 {[%emt 0:00:21]} 29. Re2 {[%emt 0:00:46]} Rexd7 {[%emt 0:00:12]} 30. Rxd7 {[%emt 0:00:11]} Rxd7 {[%emt 0:00:11]} 31. Nh3 {[%emt 0:02:03]} h6 {[%emt 0:01:59] Against Ng5} 32. Nf4 {[%emt 0:00:35]} Qd6 {[%emt 0:01:48]} 33. Qe1 {[%emt 0:01:26]} Re7 {[%emt 0:00:31]} ({Better is} 33... Bg7 $17 34. Re3 Bd4) 34. Rxe7 {[%emt 0:00:08]} Bxe7 {[%emt 0:00:03][%cal Bf8e7,Be7h4,Bh4f6,Bf6d4][%mdl 32]} 35. Bf1 {[%emt 0:00:27]} Bxh4 {[%emt 0:00:30]} 36. Nd3 $2 {[%emt 0:01:10] Loses the game.} (36. gxh4 $15 Qxf4 37. Qe7 Qg4+ 38. Bg2) 36... Bf6 $19 {[%emt 0:03:56]} 37. Nf4 {[%emt 0:00:27]} h5 {[%emt 0:00:16]} 38. Ng2 {[%emt 0:01:22]} b5 {[%emt 0:00:52]} 39. Qe3 {[%emt 0:00:10]} (39. Nd1 $142) 39... Ne6 {[%emt 0:00:35][%cal Bc5e6,Be6g5,Bg5h3,Bh3f2][%mdl 32]} 40. Qe1 $2 {[%emt 0:01:12]} (40. Nf4 {was necessary.}) 40... Bd4 {[%emt 0:01:03]} 41. Kh1 {[%emt 0:00:09]} Ng5 {[%emt 0:00:25] White must now prevent ...b4.} 42. Be2 {[%emt 0:00:26]} Nh3 {[%emt 0:02:12] Black is clearly winning.} 43. Nd1 {[%emt 0:00:15] [#]} (43. f4 $142 b4 44. axb4 Nf2+ 45. Kh2 Qxb4 46. Qa1) 43... Nxf2+ $1 {[%emt 0:00:39][%mdl 512]} 44. Nxf2 {[%emt 0:00:14]} (44. Kh2 Ne4) 44... Qxg3 {[%emt 0:00:03] ( -> ...Bd5)} 45. Kg1 {[%emt 0:00:47]} Bd5 {[%emt 0:00:19][%csl Gd5][%cal Rg3g2]} 46. Bf1 {[%emt 0:00:40]} Be5 {[%emt 0:00:37]} (46... h4 $142 47. Qe8+ Kg7 48. Qe7+ Bf7 49. Qxh4 Bxf2+ 50. Kh1 Qxh4+ 51. Nxh4 Bxh4) 47. Nh1 {[%emt 0:00:36]} Qh2+ {[%emt 0:00:27]} 48. Kf2 {[%emt 0:00:02]} Bd4+ {[%emt 0:00:08] This bishop pair is nice.} 49. Ke2 {[%emt 0:00:31]} Bxg2 {[%emt 0:00:32]} 50. Bxg2 {[%emt 0:00:49]} Qxg2+ {[%emt 0:00:06]} 51. Kd1 {[%emt 0:00:19]} Bxb2 {[%emt 0:00:48] Weighted Error Value: White=0.99/Black=0.20 (precise)} 0-1

[Event "Fall GM-C Norm Invitational 2022"]
[Site "Charlotte"]
[Date "2022.11.19"]
[Round "3"]
[White "Macieja, Bartlomiej"]
[Black "Georgiev, Vladimir"]
[Result "0-1"]
[ECO "D25"]
[WhiteElo "2514"]
[BlackElo "2406"]
[Annotator "TA"]
[PlyCount "98"]
[EventDate "2022.11.18"]
[EventType "tourn"]
[EventCountry "USA"]
[SourceTitle "playchess.com"]
[Source "ChessBase"]
[SourceQuality "1"]
[TimeControl "5400+30"]

{[%evp 9,98,28,31,20,20,27,19,18,20,14,19,31,13,22,22,18,16,15,6,16,7,0,0,0,49,-6,53,-40,-48,-45,-33,-39,-33,-44,-43,-141,-50,-43,-44,-52,-52,-68,-60,-58,-58,-58,-54,-58,-58,-57,-51,-50,-50,-51,-50,-58,-51,-51,-51,-50,-50,-51,-51,-57,-54,-54,-51,-54,-56,-58,-58,-12802,-10872,-12826,-11775,-12835,-8006,-12837,-12837,-12839,-12840,-12840,-12840,-12840,-12841,-12841,-12841,-12843,-12843,-12850,-12849]} 1. Nf3 {[%emt 0:00:01]} d5 {[%emt 0:08:14]} 2. d4 {[%emt 0:00:06]} Nf6 {[%emt 0:00:42]} 3. c4 {[%emt 0:00:07]} dxc4 {[%emt 0:00:06]} 4. e3 {[%emt 0:06:19]} a6 {[%emt 0:03:07]} 5. Bxc4 {[%emt 0:00:09]} b5 {[%emt 0:00:08]} 6. Be2 {[%emt 0:02:18] D25: Queen's Gambit Accepted: 4 e3: sidelines and 4...Bg4.} e6 {[%emt 0:00:12]} 7. a4 {[%emt 0:02:16]} b4 {[%emt 0:00:19]} (7... Bb4+ 8. Bd2 Bxd2+ 9. Nbxd2 $16) 8. O-O {[%emt 0:04:26] The position is equal.} Bb7 {[%emt 0:01:37]} 9. b3 {[%emt 0:03:36]} Nbd7 {[%emt 0:00:15]} 10. Bb2 {[%emt 0:00:05]} Be7 {[%emt 0:00:09]} 11. Nbd2 {[%emt 0:00:06][%cal Bb1d2,Bd2c4,Bc4e5][%mdl 32]} O-O {[%emt 0:00:18]} 12. Nc4 {[%emt 0:20:19]} c5 {[%emt 0:00:42]} 13. Nfe5 {[%emt 0:39:58]} cxd4 {[%emt 0:04:21]} 14. Bxd4 {[%emt 0:00:29]} Nxe5 {[%emt 0:03:01]} 15. Nxe5 {[%emt 0:01:57] [#]} Ne4 $146 {[%emt 0:08:42]} ({Predecessor:} 15... Nd5 16. Rc1 Bf6 17. Bf3 Nc3 18. Bxc3 Bxf3 19. Nxf3 bxc3 20. Nd4 Rc8 {0-1 (42) Averjanov,A (2399)-Tari,A (2656) Chess.com INT 2022}) 16. Rc1 {[%emt 0:04:29] Prevents Nc3.} Bf6 {[%emt 0:03:12]} (16... Rc8 $11 {deserves consideration.}) 17. Bf3 {[%emt 0:01:37]} (17. f3 $1 $14 Nd6 18. e4) 17... Qd5 {[%emt 0:11:11]} (17... Rc8 $11) 18. Ba1 {[%emt 0:05:38]} Bxe5 $15 {[%emt 0:01:50]} 19. Qxd5 {[%emt 0:00:03]} Bxh2+ {[%emt 0:00:17]} 20. Kxh2 {[%emt 0:00:08]} Bxd5 {[%emt 0:00:05]} 21. Bxe4 {[%emt 0:02:27]} Bxe4 {[%emt 0:00:06]} 22. Rc4 {[%emt 0:00:09]} ({White should try} 22. f3 $15 Bd5 23. Rb1) 22... Bd5 {[%emt 0:06:43]} (22... Bd3 $17 23. Rg4 f6) 23. Rxb4 {[%emt 0:00:01]} Rab8 {[%emt 0:00:14]} 24. Rg4 {[%emt 0:02:05]} f6 $1 {[%emt 0:00:15]} (24... Rxb3 {leads to mate.} 25. Rxg7+ (25. Bxg7 f5 $14) 25... Kh8 26. Rxf7+ Kg8 27. Rg7+ Kh8 28. Rg6+) 25. b4 {[%emt 0:00:02][%cal Ob4b5]} Bb3 {[%emt 0:02:25]} 26. b5 {[%emt 0:03:41]} axb5 {[%emt 0:00:21]} 27. axb5 {[%emt 0:00:11]} Rxb5 {[%emt 0:00:34]} 28. Rc1 {[%emt 0:00:35]} h5 {[%emt 0:02:20]} 29. Rd4 {[%emt 0:00:16]} e5 {[%emt 0:00:59]} 30. Rd7 {[%emt 0:00:14]} Rf7 {[%emt 0:02:37]} 31. Rxf7 {[%emt 0:00:52]} Bxf7 {[%emt 0:00:08][%mdl 4096] Endgame KRB-KRB} 32. Bc3 {[%emt 0:00:09]} Bd5 {[%emt 0:02:05]} 33. f3 {[%emt 0:01:25]} Kf7 {[%emt 0:01:33]} 34. e4 {[%emt 0:00:41]} Be6 {[%emt 0:00:09]} 35. Ra1 {[%emt 0:00:32]} Rb7 {[%emt 0:01:00]} 36. Ra6 {[%emt 0:00:31]} g5 {[%emt 0:00:55][%cal Bg7g5,Bg5g4][%mdl 32]} 37. Ba5 {[%emt 0:00:15]} Rb2 {[%emt 0:03:26]} 38. Bd8 {[%emt 0:00:46]} Rd2 {[%emt 0:02:44]} 39. Ra7+ {[%emt 0:00:04]} Kg6 {[%emt 0:00:10]} 40. Ra6 $2 {[%emt 0:00:45][%mdl 8192] White does not recover from this.} (40. Be7 $15) 40... Rxd8 $19 {[%emt 0:00:40] Black is clearly winning.} 41. Rxe6 {[%emt 0:00:02] [#] KR-KR} g4 $1 {[%emt 0:00:14]} 42. Re7 {[%emt 0:00:54]} Kg5 {[%emt 0:05:32]} 43. Kg3 {[%emt 0:00:33]} h4+ {[%emt 0:00:19]} 44. Kh2 {[%emt 0:00:32]} gxf3 {[%emt 0:03:36]} 45. gxf3 {[%emt 0:00:07]} Rd2+ {[%emt 0:00:41]} 46. Kh3 {[%emt 0:00:47]} Rf2 {[%emt 0:00:19]} 47. Rg7+ {[%emt 0:00:12]} Kf4 {[%emt 0:00:17]} 48. Rg4+ {[%emt 0:01:00]} Kxf3 {[%emt 0:01:19]} 49. Rxh4 {[%emt 0:00:11]} Ke3 {[%emt 0:00:27] Weighted Error Value: White=0.57/Black=0.15 (very precise)} 0-1